bitfinex-derivatives/quotes_BTCF0:USTF0_20250429
["timestamp","ask_amount","ask_price","bid_price","bid_amount"]
[1745925314122,0.78079,95255.0,95254.0,0.2098914]
[1745925314338,0.9906792,95255.0,95254.0,0.2098914]
[1745925314528,0.78079,95255.0,95254.0,0.2098914]
[1745925314723,0.41999,95255.0,95254.0,0.2098914]
[1745925315132,0.48639,95255.0,95254.0,0.2098914]
[1745925315330,0.48639,95255.0,95254.0,0.2419914]
[1745925315736,0.00299999,95255.0,95254.0,0.9327514]
[1745925315933,0.0325,95274.0,95273.0,0.2098495]
[1745925316328,0.45245,95274.0,95273.0,0.2098495]
[1745925316727,0.0325,95274.0,95273.0,0.2098495]
[1745925316939,0.3933,95274.0,95273.0,0.2098495]
[1745925317938,0.3608,95274.0,95273.0,0.2098495]
[1745925318128,0.3658,95274.0,95273.0,0.2098495]
[1745925318531,0.3658,95274.0,95273.0,0.4509695]
[1745925318738,0.005,95274.0,95273.0,0.4840695]
[1745925319242,0.0332,95280.0,95274.0,0.20992]
[1745925319444,0.0325,95279.0,95274.0,0.2623818]
[1745925319639,0.0325,95279.0,95274.0,0.0524618]
[1745925319834,0.0332,95278.0,95277.0,0.2098407]
[1745925320537,0.0332,95278.0,95277.0,0.2746407]
[1745925321437,0.001,95280.0,95279.0,0.2098363]
[1745925321635,0.2108341,95280.0,95279.0,0.2098363]
[1745925322828,0.003,95280.0,95279.0,0.2098363]
[1745925323543,0.003,95280.0,95279.0,0.32285094]
[1745925323741,0.003,95280.0,95279.0,0.46285094]
[1745925323940,0.003,95280.0,95279.0,0.32285094]
[1745925325037,0.003,95280.0,95279.0,0.46285094]
[1745925325239,0.003,95280.0,95279.0,0.32285094]
[1745925325634,0.003,95280.0,95279.0,0.46285094]
[1745925326240,0.003,95280.0,95279.0,2.08285094]
[1745925327235,0.003,95280.0,95279.0,1.96285094]
[1745925327844,0.0015,95290.0,95289.0,0.2098143]
[1745925328345,0.034,95290.0,95289.0,0.2098143]
[1745925328943,0.034,95290.0,95289.0,0.2705143]
[1745925329145,0.0055,95290.0,95289.0,0.3905143]
[1745925329345,0.0095,95290.0,95289.0,0.3905143]
[1745925329548,0.0095,95290.0,95289.0,0.2705143]
[1745925330341,0.0095,95290.0,95289.0,0.4005143]
[1745925330541,0.0075,95290.0,95289.0,0.4005143]
[1745925330946,0.0075,95290.0,95289.0,0.2705143]
[1745925331447,0.0075,95290.0,95289.0,0.3754583]
[1745925331952,0.0726,95290.0,95289.0,0.2399143]
[1745925333740,0.2098341,95280.0,95279.0,0.00805864]
[1745925333945,0.2098429,95277.0,95276.0,0.2098411]
[1745925334252,0.2098429,95276.0,95273.0,0.0524623]
[1745925334451,0.2420429,95276.0,95273.0,0.0524623]
[1745925334645,0.2420429,95276.0,95275.0,0.2098451]
[1745925334840,0.0322,95276.0,95275.0,0.2098451]
[1745925335246,0.0322,95276.0,95266.0,0.2778997]
[1745925335445,0.2098628,95267.0,95266.0,0.06804]
[1745925335750,0.2098782,95260.0,95253.0,0.4715728]
[1745925336052,0.5706782,95260.0,95259.0,0.21145503]
[1745925336239,0.3608,95260.0,95259.0,0.21145503]
[1745925336643,0.422,95260.0,95259.0,0.21145503]
[1745925336844,0.4522,95260.0,95259.0,0.21145503]
[1745925337452,0.4522,95260.0,95259.0,0.21445503]
[1745925338048,0.4522,95260.0,95259.0,0.21645503]
[1745925338448,0.4522,95260.0,95259.0,0.21445503]
[1745925338640,0.4522,95260.0,95259.0,0.21645503]
[1745925339741,0.4522,95260.0,95259.0,0.21345503]
[1745925339936,0.4522,95260.0,95259.0,0.21645503]
[1745925340542,0.4522,95260.0,95259.0,0.21345503]
[1745925340738,0.4522,95260.0,95259.0,0.21645503]
[1745925342851,0.4522,95260.0,95259.0,0.21345503]
[1745925343049,0.4522,95260.0,95259.0,0.21645503]
[1745925344452,0.6620782,95260.0,95259.0,0.00657463]
[1745925345041,0.6620782,95260.0,95259.0,0.21645503]
[1745925347546,0.6620782,95260.0,95259.0,0.00657463]
[1745925347756,0.6620782,95260.0,95259.0,0.21645503]
[1745925348748,0.6620782,95260.0,95259.0,0.00657463]
[1745925348950,0.6620782,95260.0,95259.0,0.21405503]
[1745925352552,0.6620782,95260.0,95259.0,0.00417463]
[1745925352755,0.2624077,95240.0,95239.0,0.2099161]
[1745925353054,0.3608,95244.0,95243.0,0.2099156]
[1745925353444,0.4531,95244.0,95243.0,0.2099156]
[1745925353647,0.0923,95244.0,95243.0,0.2099156]
[1745925355552,0.0923,95244.0,95243.0,0.2149156]
[1745925356356,0.0923,95244.0,95243.0,0.2521156]
[1745925356654,0.0303,95244.0,95243.0,0.2521156]
[1745925356855,0.0303,95244.0,95243.0,0.6129156]
[1745925357056,0.0311,95250.0,95249.0,0.2099024]
[1745925357460,0.3608,95251.0,95250.0,0.2099002]
[1745925357846,0.3608,95251.0,95250.0,0.3148882]
[1745925358561,0.3608,95251.0,95250.0,0.3178882]
[1745925359164,0.3608,95251.0,95250.0,0.2129002]
[1745925359854,0.3608,95251.0,95250.0,0.2788002]
[1745925360061,0.3608,95251.0,95250.0,0.2828002]
[1745925360562,0.3608,95251.0,95250.0,0.2497002]
[1745925360749,0.570698,95251.0,95250.0,0.2497002]
[1745925360957,0.3608,95251.0,95250.0,0.2497002]
[1745925361263,0.570698,95251.0,95250.0,0.007]
[1745925362049,0.675686,95251.0,95250.0,0.007]
[1745925362453,1.036486,95251.0,95250.0,0.007]
[1745925362855,0.931498,95251.0,95250.0,0.007]
[1745925364759,0.931498,95251.0,95250.0,0.2169002]
[1745925365173,0.931498,95251.0,95250.0,0.007]
[1745925365364,0.2623994,95243.0,95240.0,0.0524804]
[1745925365560,0.57072,95241.0,95240.0,0.2624027]
[1745925366461,0.2099267,95238.0,95237.0,0.21150391]
[1745925366651,0.5707267,95238.0,95237.0,0.21150391]
[1745925367559,0.5707267,95238.0,95237.0,0.00157501]
[1745925367760,0.5707267,95238.0,95237.0,0.21150391]
[1745925367959,0.5707267,95238.0,95237.0,0.00157501]
[1745925368164,0.5707267,95238.0,95237.0,0.21150391]
[1745925368550,0.5707267,95238.0,95237.0,0.21650391]
[1745925369361,0.5707267,95238.0,95237.0,0.00657501]
[1745925369564,0.5707267,95238.0,95237.0,0.22150391]
[1745925369754,0.5707267,95238.0,95237.0,0.01157501]
[1745925370164,0.5707267,95238.0,95237.0,0.22150391]
[1745925371165,0.2099487,95228.0,95227.0,0.00157538]
[1745925371362,0.5707487,95228.0,95227.0,0.21152628]
[1745925373164,0.5707487,95228.0,95227.0,0.21252628]
[1745925374455,0.5707487,95228.0,95227.0,0.24552628]
[1745925377265,0.5717487,95228.0,95227.0,0.24452628]
[1745925378268,0.5727487,95228.0,95227.0,0.24452628]
[1745925378573,0.5717487,95228.0,95227.0,0.24452628]
[1745925378873,0.5737487,95228.0,95227.0,0.24452628]
[1745925379468,0.3638,95228.0,95227.0,0.24452628]
[1745925379971,0.4282,95228.0,95227.0,0.24452628]
[1745925380775,0.4282,95228.0,95227.0,0.27552628]
[1745925381368,0.4272,95228.0,95227.0,0.27552628]
[1745925381678,0.4282,95228.0,95227.0,0.27552628]
[1745925382177,0.4272,95228.0,95227.0,0.27552628]
[1745925382377,0.5244991,95296.0,95227.0,0.27552628]
[1745925382378,0.5707002,95250.0,95249.0,0.2099024]
[1745925384274,0.6338002,95250.0,95249.0,0.2099024]
[1745925384878,0.6418002,95250.0,95249.0,0.2099024]
[1745925385474,0.6398002,95250.0,95249.0,0.2099024]
[1745925385680,0.6418002,95250.0,95249.0,0.2099024]
[1745925385876,0.6358002,95250.0,95249.0,0.2099024]
[1745925386073,0.6378002,95250.0,95249.0,0.2099024]
[1745925387368,0.6378002,95250.0,95227.0,0.00157538]
[1745925387369,0.532888,95250.0,95227.0,0.00157538]
[1745925387569,0.6232347,95232.0,95231.0,0.2624271]
[1745925387873,0.5707399,95232.0,95231.0,0.2624271]
[1745925388872,0.5717399,95232.0,95231.0,0.2624271]
[1745925389384,0.5727399,95232.0,95231.0,0.2624271]
[1745925389974,0.5717399,95232.0,95231.0,0.2624271]
[1745925390168,0.5737399,95232.0,95231.0,0.2624271]
[1745925390375,0.2099487,95228.0,95227.0,0.21152298]
[1745925391072,0.2099487,95228.0,95227.0,0.00157538]
[1745925391474,0.465812,95228.0,95209.0,0.209984]
[1745925391677,0.5707884,95210.0,95209.0,0.209984]
[1745925392272,0.5707884,95210.0,95209.0,0.21779302]
[1745925392873,0.2099884,95210.0,95209.0,0.25869302]
[1745925393073,0.5707884,95210.0,95209.0,0.25869302]
[1745925393282,0.5707884,95210.0,95209.0,0.26069302]
[1745925393482,0.5707884,95210.0,95209.0,0.26269302]
[1745925397377,0.5707884,95210.0,95209.0,0.2548906]
[1745925403588,0.3608,95210.0,95209.0,0.2548906]
[1745925404892,0.2099345,95235.0,95234.0,0.2099333]
[1745925405388,0.2929345,95235.0,95234.0,0.2099333]
[1745925406086,0.2959345,95235.0,95234.0,0.2099333]
[1745925406983,0.2989345,95235.0,95234.0,0.2099333]
[1745925407980,0.2949345,95235.0,95234.0,0.2099333]
[1745925408184,0.2969345,95235.0,95234.0,0.2099333]
[1745925408584,0.0463,95235.0,95234.0,0.2099333]
[1745925409288,0.0887,95235.0,95234.0,0.2513333]
[1745925410092,0.0867,95235.0,95234.0,0.2513333]
[1745925410389,0.0877,95235.0,95234.0,0.2513333]
[1745925411287,0.0867,95235.0,95234.0,0.2513333]
[1745925411690,0.0857,95235.0,95234.0,0.2513333]
[1745925412192,0.0847,95235.0,95234.0,0.2513333]
[1745925412794,0.2946333,95235.0,95234.0,0.2513333]
[1745925413389,0.2956333,95235.0,95234.0,0.2513333]
[1745925413881,0.5046633,95235.0,95234.0,0.0414]
[1745925414086,0.0524876,95228.0,95216.0,0.0524936]
[1745925414394,0.2624654,95220.0,95219.0,0.2099617]
[1745925414593,0.209973,95220.0,95219.0,0.2099617]
[1745925414995,0.209973,95220.0,95219.0,0.2952617]
[1745925415692,0.420003,95220.0,95219.0,0.0436]
[1745925416285,0.21003,95220.0,95219.0,0.2535685]
[1745925417095,0.2099645,95221.0,95220.0,0.262453]
[1745925417293,0.2099645,95221.0,95220.0,0.304153]
[1745925417595,0.2099645,95221.0,95220.0,0.347753]
[1745925418296,0.0816,95223.0,95222.0,0.2099619]
[1745925418483,0.3608,95226.0,95225.0,0.2099553]
[1745925418690,0.7807831,95226.0,95225.0,0.2099553]
[1745925418998,0.8248831,95226.0,95225.0,0.2099553]
[1745925419198,0.8676831,95226.0,95225.0,0.2099553]
[1745925419388,0.8676831,95226.0,95225.0,0.2545553]
[1745925419586,0.65873,95226.0,95225.0,0.2545553]
[1745925420398,0.001,95226.0,95225.0,0.2545553]
[1745925420799,0.002,95226.0,95225.0,0.2545553]
[1745925421598,0.2119531,95226.0,95225.0,0.2545553]
[1745925421803,0.4219831,95226.0,95225.0,0.2099553]
[1745925422195,0.4668831,95226.0,95225.0,0.2099553]
[1745925422805,0.4658831,95226.0,95225.0,0.2099553]
[1745925424100,0.4648831,95226.0,95225.0,0.2099553]
[1745925424302,0.4668831,95226.0,95225.0,0.2099553]
[1745925424798,0.2099597,95224.0,95223.0,0.2099583]
[1745925425000,0.4199897,95224.0,95223.0,0.2099583]
[1745925425208,0.2099641,95222.0,95221.0,0.2099641]
[1745925425503,0.4199941,95222.0,95221.0,0.2099641]
[1745925425692,0.5053941,95222.0,95221.0,0.2099641]
[1745925428402,0.2099641,95221.0,95220.0,0.0465]
[1745925428596,0.209984,95213.0,95212.0,0.2624778]
[1745925428992,0.255884,95213.0,95212.0,0.2624778]
[1745925429500,0.0524966,95211.0,95207.0,0.00802737]
[1745925429696,0.0524966,95211.0,95207.0,0.2099926]
[1745925429697,0.5707928,95208.0,95207.0,0.2099926]
[1745925430901,0.5707928,95208.0,95207.0,0.2119926]
[1745925431102,0.5707928,95208.0,95207.0,0.2542926]
[1745925431410,0.5707928,95208.0,95207.0,0.2572926]
[1745925433001,0.2099928,95208.0,95207.0,0.2572926]
[1745925433404,0.2099928,95208.0,95207.0,0.26532825]
[1745925434512,0.2978928,95208.0,95207.0,0.26532825]
[1745925435712,0.0879,95208.0,95207.0,0.26532825]
[1745925436716,0.2978928,95208.0,95207.0,0.26532825]
[1745925437817,0.2978928,95208.0,95207.0,0.24532825]
[1745925439916,0.2978928,95208.0,95207.0,0.24332825]
[1745925440118,0.2978928,95208.0,95207.0,0.24532825]
[1745925440819,0.2978928,95208.0,95207.0,0.05533565]
[1745925441015,0.2978928,95208.0,95207.0,0.26533065]
[1745925447706,0.5079228,95208.0,95207.0,0.26533065]
[1745925456820,0.3608,95234.0,95207.0,0.27036764]
[1745925457010,0.21003,95227.0,95224.0,0.06488885]
[1745925457215,0.3608,95242.0,95225.0,0.0498]
[1745925457420,0.21003,95236.0,95235.0,0.2099333]
[1745925457618,0.0488,95241.0,95240.0,0.2099223]
[1745925458021,0.25883,95241.0,95240.0,0.2099223]
[1745925458220,0.35733,95241.0,95240.0,0.2099223]
[1745925459023,0.30873,95241.0,95240.0,0.2099223]
[1745925459219,0.31273,95241.0,95240.0,0.2597223]
[1745925460721,0.31673,95241.0,95240.0,0.2597223]
[1745925461516,0.21803,95241.0,95240.0,0.2597223]
[1745925461918,0.21803,95241.0,95240.0,0.6884423]
[1745925462124,0.3608,95265.0,95254.0,0.2098914]
[1745925462331,0.0998,95264.0,95254.0,0.3498914]
[1745925462512,0.0998,95264.0,95263.0,0.2098716]
[1745925462717,0.0998,95264.0,95263.0,1.72240021]
[1745925463023,0.0498,95264.0,95263.0,1.72240021]
[1745925463322,0.0997,95264.0,95263.0,1.7098716]
[1745925463511,0.0997,95264.0,95263.0,1.8312916]
[1745925463715,0.1037,95264.0,95263.0,1.8807916]
[1745925464117,0.0997,95264.0,95263.0,1.8807916]
[1745925464326,0.1007,95264.0,95263.0,1.8807916]
[1745925464527,0.0508,95264.0,95263.0,1.8807916]
[1745925464822,0.001,95264.0,95263.0,1.8807916]
[1745925465326,0.0015,95290.0,95273.0,0.0524623]
[1745925465621,0.0517,95290.0,95285.0,0.2098231]
[1745925465823,0.0499,95289.0,95285.0,0.2774231]
[1745925466019,0.21103,95286.0,95285.0,0.2774231]
[1745925466220,0.21103,95286.0,95285.0,1.8775231]
[1745925466724,0.001,95286.0,95285.0,1.8775231]
[1745925467313,0.004,95286.0,95285.0,1.8775231]
[1745925467513,0.004,95286.0,95285.0,1.89038465]
[1745925467913,0.008,95286.0,95285.0,1.89038465]
[1745925468117,0.008,95286.0,95285.0,1.8775231]
[1745925469431,0.008,95286.0,95285.0,2.00050649]
[1745925470821,0.005,95286.0,95285.0,2.00050649]
[1745925471020,0.008,95286.0,95285.0,2.00050649]
[1745925472418,0.008,95286.0,95285.0,2.10545449]
[1745925472614,0.049,95298.0,95297.0,0.2097967]
[1745925472823,0.1004,95298.0,95297.0,0.2097967]
[1745925473024,0.31043,95298.0,95297.0,0.2773567]
[1745925474030,0.31443,95298.0,95297.0,1.7773567]
[1745925474617,0.31743,95298.0,95297.0,1.7773567]
[1745925475026,0.31743,95298.0,95297.0,1.7097967]
[1745925475324,0.1074,95298.0,95297.0,1.7773567]
[1745925475527,0.0584,95298.0,95297.0,1.9173567]
[1745925475728,0.007,95298.0,95297.0,2.0717927]
[1745925476125,0.005,95300.0,95297.0,2.0717927]
[1745925476323,0.3608,95331.0,95299.0,0.3608]
[1745925476522,0.3608,95322.0,95315.0,0.20948415]
[1745925476722,0.3608,95322.0,95315.0,0.41704415]
[1745925476933,0.3608,95322.0,95315.0,0.34948415]
[1745925477127,0.3608,95322.0,95315.0,0.51944415]
[1745925477323,0.3608,95322.0,95315.0,0.45188415]
[1745925477524,0.3608,95322.0,95315.0,0.51944415]
[1745925477736,0.3608,95322.0,95315.0,0.37944415]
[1745925478823,0.002,95316.0,95315.0,0.37944415]
[1745925480031,0.002,95316.0,95315.0,0.31188415]
[1745925480334,0.002,95316.0,95315.0,0.37944415]
[1745925480922,0.002,95316.0,95315.0,0.32994415]
[1745925481126,0.0524393,95315.0,95304.0,0.0524446]
[1745925481331,0.3608,95305.0,95304.0,0.2622259]
[1745925481533,0.57083,95305.0,95304.0,0.2622259]
[1745925482233,0.3608,95305.0,95304.0,0.2622259]
[1745925482426,0.3608,95305.0,95304.0,0.2632259]
[1745925482929,0.7806091,95305.0,95304.0,0.2642259]
[1745925483131,0.7806091,95305.0,95304.0,0.002]
[1745925483324,0.7806091,95305.0,95304.0,0.001]
[1745925483524,0.7806091,95305.0,95304.0,0.002]
[1745925484129,0.7806091,95305.0,95304.0,0.2117813]
[1745925485238,0.57083,95305.0,95304.0,0.2117813]
[1745925485735,0.57083,95305.0,95304.0,0.2107813]
[1745925486031,0.7806091,95305.0,95304.0,0.2117813]
[1745925486418,0.57083,95305.0,95304.0,0.2117813]
[1745925486624,0.21003,95305.0,95304.0,0.2117813]
[1745925486831,0.31212183,95305.0,95304.0,0.3017813]
[1745925487538,0.31212183,95305.0,95304.0,0.3538813]
[1745925487731,0.31212183,95305.0,95304.0,0.2638813]
[1745925487933,0.31212183,95305.0,95304.0,0.2628813]
[1745925488136,0.31212183,95305.0,95304.0,0.2638813]
[1745925488431,0.73193093,95305.0,95304.0,0.002]
[1745925488833,0.52215183,95305.0,95304.0,0.2117813]
[1745925489337,0.1536,95308.0,95307.0,0.2097747]
[1745925489732,0.36363,95308.0,95307.0,0.2097747]
[1745925491028,0.36363,95308.0,95307.0,0.2107747]
[1745925491936,0.36363,95308.0,95307.0,0.22743574]
[1745925492934,0.36363,95308.0,95307.0,0.2117747]
[1745925493129,0.1041,95308.0,95307.0,0.2117747]
[1745925493332,0.4649,95308.0,95307.0,0.2117747]
[1745925494336,0.4649,95308.0,95307.0,0.2278855]
[1745925494931,0.4649,95308.0,95307.0,0.2117747]
[1745925495527,0.67493,95308.0,95307.0,0.2117747]
[1745925497035,0.67493,95308.0,95307.0,0.22790312]
[1745925498043,0.4649,95308.0,95307.0,0.22790312]
[1745925499739,0.67493,95308.0,95307.0,0.22790312]
[1745925500250,0.67493,95308.0,95307.0,0.2117747]
[1745925501034,0.67493,95308.0,95307.0,0.2275131]
[1745925501234,0.67493,95308.0,95307.0,0.2117747]
[1745925501642,0.67493,95308.0,95307.0,0.22751507]
[1745925501848,0.67493,95308.0,95307.0,0.01774037]
[1745925502036,0.8847025,95308.0,95307.0,0.2117747]
[1745925504140,0.8847025,95308.0,95307.0,0.002]
[1745925504747,0.8847025,95308.0,95304.0,0.0524452]
[1745925504748,0.2097813,95304.0,95303.0,0.21228204]
[1745925504948,0.2097989,95296.0,95262.0,0.3608]
[1745925505148,0.2098187,95287.0,95286.0,0.53121102]
[1745925505449,0.7806487,95287.0,95286.0,0.53121102]
[1745925505645,0.7806487,95287.0,95286.0,0.32139202]
[1745925505852,0.8855967,95287.0,95286.0,0.32139202]
[1745925506053,0.9846967,95287.0,95286.0,0.32139202]
[1745925507250,0.9846967,95287.0,95286.0,0.24259202]
[1745925507661,0.9846967,95287.0,95286.0,0.001]
[1745925507853,0.2098253,95284.0,95283.0,0.2098264]
[1745925508156,0.4198553,95284.0,95283.0,0.2098264]
[1745925508355,0.5248033,95284.0,95283.0,0.2098264]
[1745925508949,0.2098275,95283.0,95282.0,0.15914096]
[1745925509249,0.67703,95283.0,95282.0,0.36897066]
[1745925509457,0.467,95283.0,95282.0,0.36897066]
[1745925509847,0.6768275,95283.0,95282.0,0.36897066]
[1745925510943,0.1062,95283.0,95282.0,0.36897066]
[1745925511347,0.3160275,95283.0,95282.0,0.36897066]
[1745925511543,0.1062,95283.0,95282.0,0.42497066]
[1745925511742,0.1062,95283.0,95282.0,0.47787066]
[1745925512153,0.3608,95286.0,95285.0,0.2098231]
[1745925512552,0.0524481,95299.0,95285.0,0.2098231]
[1745925512553,0.2097902,95304.0,95303.0,0.2097791]
[1745925512756,0.5705902,95304.0,95303.0,0.2097791]
[1745925512945,0.8330667,95304.0,95303.0,0.2097791]
[1745925513849,0.8855137,95304.0,95303.0,0.2097791]
[1745925515154,0.8855137,95304.0,95303.0,0.2107791]
[1745925515348,0.8855137,95304.0,95303.0,0.2117791]
[1745925518057,0.5247137,95304.0,95303.0,0.2117791]
[1745925519561,0.5247137,95304.0,95303.0,0.002]
[1745925519958,0.8855137,95304.0,95303.0,0.002]
[1745925520156,0.9904417,95304.0,95303.0,0.002]
[1745925521362,0.4722791,95296.0,95293.0,0.1049021]
[1745925521665,0.4198311,95295.0,95294.0,0.0503]
[1745925521867,0.5239311,95295.0,95294.0,0.0503]
[1745925522163,0.3139011,95295.0,95294.0,0.0503]
[1745925522770,0.3139011,95295.0,95294.0,0.2601011]
[1745925522960,0.5239311,95295.0,95294.0,0.2611011]
[1745925523166,0.5239311,95295.0,95294.0,0.0513]
[1745925523465,0.8847311,95295.0,95294.0,0.0513]
[1745925523665,0.8847311,95295.0,95294.0,0.2611033]
[1745925524265,0.8847311,95295.0,95294.0,0.0523]
[1745925524766,0.8847311,95295.0,95294.0,0.002]
[1745925525660,0.8847311,95295.0,95294.0,0.001]
[1745925526661,0.6747011,95295.0,95294.0,0.2108033]
[1745925527363,0.5706011,95295.0,95294.0,0.2108033]
[1745925527566,0.2098011,95295.0,95294.0,0.2108033]
[1745925527864,0.2098011,95295.0,95294.0,0.2098033]
[1745925528163,0.2098055,95293.0,95292.0,0.2596057]
[1745925528373,0.2098055,95293.0,95292.0,0.0498]
[1745925528661,0.2098055,95293.0,95292.0,0.2596077]
[1745925530168,0.2098055,95293.0,95292.0,0.2616077]
[1745925530367,0.7806355,95293.0,95292.0,0.002]
[1745925531061,0.7806355,95293.0,95292.0,0.2118077]
[1745925531566,0.7806355,95293.0,95292.0,0.2128077]
[1745925531758,0.7806355,95293.0,95292.0,0.2118077]
[1745925532365,0.7806355,95293.0,95292.0,0.2108077]
[1745925532563,0.7806355,95293.0,95292.0,0.2118077]
[1745925533267,0.7806355,95293.0,95292.0,0.2128077]
[1745925533956,0.4198355,95293.0,95292.0,0.2128077]
[1745925534262,0.4198355,95293.0,95292.0,0.2138077]
[1745925534657,0.4198355,95293.0,95292.0,0.2118077]
[1745925534958,0.4198355,95293.0,95292.0,0.2128077]
[1745925535466,0.4198355,95293.0,95292.0,0.2118077]
[1745925535665,0.2098055,95293.0,95292.0,0.2138077]
[1745925537867,0.2625055,95293.0,95292.0,0.2138077]
[1745925538262,0.2625055,95293.0,95292.0,0.2118077]
[1745925538465,0.0527,95293.0,95292.0,0.2138077]
[1745925538664,0.2625055,95293.0,95292.0,0.2138077]
[1745925540569,0.8333355,95293.0,95292.0,0.004]
[1745925540767,0.8847355,95293.0,95292.0,0.004]
[1745925540968,0.8847355,95293.0,95292.0,0.002]
[1745925541171,0.8847355,95293.0,95292.0,0.004]
[1745925541562,0.8847355,95293.0,95291.0,0.2098094]
[1745925541563,0.2098077,95292.0,95291.0,0.2098094]
[1745925541762,0.2098121,95290.0,95289.0,0.2622668]
[1745925541960,0.2622782,95287.0,95284.0,0.0486]
[1745925542176,0.2098231,95285.0,95284.0,0.3108794]
[1745925542961,0.3118231,95285.0,95284.0,0.3635794]
[1745925543166,0.3118231,95285.0,95284.0,0.3655794]
[1745925543369,0.3118231,95285.0,95284.0,0.4170794]
[1745925543565,0.102,95285.0,95284.0,0.4170794]
[1745925543769,0.0531,95285.0,95284.0,0.4170794]
[1745925544365,0.0489,95292.0,95291.0,0.2098099]
[1745925544678,0.1007,95292.0,95291.0,0.2098099]
[1745925544872,0.2616077,95292.0,95291.0,0.2098099]
[1745925546870,0.2616077,95292.0,95291.0,0.2108099]
[1745925547870,0.0489,95297.0,95293.0,0.0524512]
[1745925548064,0.2595004,95296.0,95295.0,0.2097989]
[1745925548271,0.2098077,95292.0,95291.0,0.2108031]
[1745925549074,0.2098077,95292.0,95291.0,0.2098031]
[1745925549278,0.2595077,95292.0,95291.0,0.2098031]
[1745925550769,0.2595077,95292.0,95291.0,0.2108031]
[1745925551170,0.2595077,95292.0,95291.0,0.2118031]
[1745925552077,0.4695377,95292.0,95291.0,0.002]
[1745925552381,0.4695377,95292.0,95291.0,0.2118099]
[1745925552972,0.5194377,95292.0,95291.0,1.7118099]
[1745925554980,0.5194377,95292.0,95291.0,1.7108099]
[1745925555179,0.5194377,95292.0,95291.0,1.7118099]
[1745925559483,0.3094077,95292.0,95291.0,1.7118099]
[1745925559786,0.5194377,95292.0,95291.0,1.7118099]
[1745925560680,0.5194377,95292.0,95291.0,0.2118099]
[1745925568393,0.5194377,95292.0,95291.0,0.002]
[1745925568596,0.2098253,95284.0,95283.0,0.00157439]
[1745925568894,0.2098253,95284.0,95283.0,0.21140189]
[1745925568895,0.4198553,95284.0,95283.0,0.21140189]
[1745925569497,0.5181553,95284.0,95283.0,0.21140189]
[1745925570597,0.5181553,95284.0,95283.0,0.21340189]
[1745925571194,0.5181553,95284.0,95283.0,0.21540189]
[1745925571797,0.5181553,95284.0,95283.0,0.21340189]
[1745925572299,0.5181553,95284.0,95283.0,0.00357439]
[1745925573198,0.2098495,95273.0,95264.0,0.0516]
[1745925573397,0.4198795,95273.0,95264.0,0.1519]
[1745925573901,0.4198795,95273.0,95270.0,0.2098554]
[1745925574292,0.5178795,95273.0,95272.0,0.21142613]
[1745925574900,0.5178795,95273.0,95272.0,0.21342613]
[1745925581099,0.098,95273.0,95272.0,0.21342613]
[1745925581412,0.3608,95276.0,95275.0,0.2098451]
[1745925582004,0.5706429,95276.0,95275.0,0.2098451]
[1745925582502,0.5706429,95276.0,95275.0,0.2626451]
[1745925584297,0.5706429,95276.0,95275.0,0.2636451]
[1745925584494,0.5706429,95276.0,95275.0,0.2646451]
[1745925585102,0.7806729,95276.0,95275.0,0.002]
[1745925585302,0.7806729,95276.0,95275.0,0.2108451]
[1745925585604,0.7806729,95276.0,95275.0,0.2118451]
[1745925586998,0.7806729,95276.0,95275.0,0.2108451]
[1745925587504,0.0524551,95289.0,95275.0,0.001]
[1745925587703,0.2098172,95288.0,95287.0,0.2098165]
[1745925588100,0.3127172,95288.0,95287.0,1.7098165]
[1745925592299,0.1029,95288.0,95287.0,1.7098165]
[1745925592502,0.2624165,95288.0,95287.0,1.7098165]
[1745925592708,0.2098147,95289.0,95288.0,0.2622679]
[1745925592898,0.2098147,95289.0,95288.0,0.3147679]
[1745925593504,0.0495,95290.0,95289.0,0.2098143]
[1745925593695,0.2593121,95290.0,95289.0,0.2623143]
[1745925595102,0.2603121,95290.0,95289.0,0.2623143]
[1745925595713,0.2613121,95290.0,95289.0,0.2623143]
[1745925596007,0.3142121,95290.0,95289.0,0.2623143]
[1745925598311,0.3142121,95290.0,95289.0,0.3146143]
[1745925598705,0.5242421,95290.0,95289.0,0.3146143]
[1745925599409,0.2098165,95288.0,95287.0,1.7098184]
[1745925599615,0.4198465,95288.0,95287.0,0.2098184]
[1745925600609,0.2098319,95281.0,95280.0,0.4169388]
[1745925600816,0.2098319,95281.0,95280.0,0.0523]
[1745925601005,0.0524618,95275.0,95272.0,0.36434683]
[1745925601206,0.0996,95274.0,95273.0,0.0489]
[1745925602814,0.3094473,95274.0,95273.0,0.3108495]
[1745925603007,0.3094473,95274.0,95273.0,0.3128495]
[1745925603504,0.3094473,95274.0,95273.0,0.3148495]
[1745925603710,0.3094473,95274.0,95273.0,0.3128495]
[1745925603907,0.3094473,95274.0,95273.0,0.3148495]
[1745925604411,0.0495,95282.0,95273.0,0.3148495]
[1745925604412,0.4131,95291.0,95290.0,0.2098121]
[1745925604911,0.4131,95291.0,95290.0,1.7098121]
[1745925605111,0.4131,95291.0,95290.0,1.8088121]
[1745925605325,0.0497,95293.0,95292.0,0.2098077]
[1745925605512,0.3119478,95298.0,95297.0,0.2097945]
[1745925605919,0.5219778,95298.0,95297.0,1.7097945]
[1745925606309,0.25973,95298.0,95297.0,1.7097945]
[1745925606619,0.4695245,95298.0,95297.0,1.7097945]
[1745925607011,0.26273,95298.0,95297.0,1.7097945]
[1745925607317,0.26473,95298.0,95297.0,1.7097945]
[1745925608019,0.3133945,95298.0,95297.0,1.7097945]
[1745925608212,0.5234245,95298.0,95297.0,1.7097945]
[1745925608909,0.31363,95298.0,95297.0,1.7097945]
[1745925609110,0.5234245,95298.0,95297.0,1.7097945]
[1745925622620,0.3133945,95298.0,95297.0,1.7097945]
[1745925622829,0.5234245,95298.0,95297.0,1.7097945]
[1745925623526,0.5234245,95298.0,95297.0,1.5]
[1745925623715,0.2622838,95285.0,95282.0,0.0528]
[1745925623920,0.2622838,95285.0,95284.0,0.2622816]
[1745925624126,0.5706203,95288.0,95287.0,0.2098187]
[1745925625524,0.5706203,95288.0,95287.0,0.2587187]
[1745925626728,0.2098187,95287.0,95286.0,0.0555]
[1745925627224,0.2098187,95287.0,95286.0,0.2653209]
[1745925627419,0.4198487,95287.0,95286.0,0.2653209]
[1745925629023,0.2098187,95287.0,95286.0,0.2653209]
[1745925630631,0.4198487,95287.0,95286.0,0.2098209]
[1745925631527,0.2098187,95287.0,95286.0,0.2098209]
[1745925632622,0.2098187,95287.0,95286.0,0.3252209]
[1745925634132,0.2622666,95293.0,95292.0,0.3147004]
[1745925634336,0.2622666,95293.0,95292.0,0.2622492]